[Event "36th German Seniors-ch-65 2024"]
[Site "Bad Wildungen"]
[Date "2024.08.31"]
[Round "9.16"]
[White "Kannenberg, Karl-Heinz"]
[Black "Kroencke, Manfred"]
[Result "1/2-1/2"]
[ECO "D04"]
[WhiteElo "2121"]
[BlackElo "2008"]
[Annotator "RC"]
[PlyCount "117"]
[EventDate "2024.08.22"]
[EventType "swiss"]
[EventCountry "GER"]
[SourceTitle "playchess.com"]
[Source "ChessBase"]
[SourceQuality "1"]
[TimeControl "40/5400+30:1800+30"]

1. d4 {[%emt 0:00:07]} d5 {[%emt 0:00:17]} 2. Nf3 {[%emt 0:00:07]} Nf6 {[%emt 0:00:32]} 3. e3 {[%emt 0:00:15]} Bg4 {[%emt 0:01:16]} 4. Nbd2 {[%emt 0:01:19]} Nbd7 {[%emt 0:02:07]} 5. Be2 {[%emt 0:02:37]} e6 {[%emt 0:00:47]} 6. c4 {[%emt 0:00:57]} c6 {[%emt 0:04:10]} 7. b3 {[%emt 0:05:41]} Bd6 {[%emt 0:04:00]} 8. Bb2 {[%emt 0:00:14]} O-O {[%emt 0:01:35]} 9. Ne5 {[%emt 0:05:26]} Bxe2 {[%emt 0:00:30]} 10. Qxe2 {[%emt 0:00:05]} Bb4 {[%emt 0:01:39]} 11. Nd3 {[%emt 0:03:16]} Bxd2+ {[%emt 0:00:54]} 12. Qxd2 {[%emt 0:00:09]} Ne4 {[%emt 0:00:40]} 13. Qb4 {[%emt 0:00:17]} b6 {[%emt 0:03:28]} 14. O-O {[%emt 0:00:53]} c5 {[%emt 0:03:55]} 15. Qe1 {[%emt 0:04:21]} dxc4 {[%emt 0:05:59]} 16. bxc4 {[%emt 1:12:46]} Rc8 {[%emt 1:06:41]} 17. Rc1 {[%emt 0:00:30]} Nd6 {[%emt 0:00:30]} 18. dxc5 {[%emt 0:00:30]} Nxc5 {[%emt 0:00:30]} 19. Qc3 {[%emt 0:00:30]} f6 {[%emt 0:00:30]} 20. Rfd1 {[%emt 0:00:00]} Qc7 21. Nxc5 {[%emt 0:01:00]} bxc5 {[%emt 0:01:00]} 22. Qc2 {[%emt 0:00:00]} Rfd8 23. Bc3 {[%emt 0:00:00]} Rd7 24. Qd2 {[%emt 0:00:00]} Rb8 25. e4 {[%emt 0:00:00]} Rb7 26. Qe2 {[%emt 0:02:30]} Nf7 {[%emt 0:02:30]} 27. Qg4 {[%emt 0:00:30]} e5 {[%emt 0:00:30]} 28. Qe6 {[%emt 0:00:30]} Re7 {[%emt 0:00:00]} 29. Qg4 {[%emt 0:00:00]} Nd8 {[%emt 0:00:00]} 30. Rd5 {[%emt 0:00:00]} Ne6 {[%emt 0:00:00]} 31. g3 {[%emt 0:00:00]} Rb8 {[%emt 0:00:00]} 32. f4 {[%emt 0:00:00]} Nd4 {[%emt 0:00:00]} 33. Bxd4 {[%emt 0:00:00]} cxd4 {[%emt 0:00:00]} 34. fxe5 {[%emt 0:00:00]} fxe5 {[%emt 0:00:00]} 35. c5 {[%emt 0:00:00]} Qc8 {[%emt 0:00:00]} 36. Qg5 {[%emt 0:00:00]} Qe6 {[%emt 0:00:00]} 37. Rd6 {[%emt 0:00:00]} Qf7 {[%emt 0:00:00]} 38. Rf1 {[%emt 0:00:24]} Qe8 {[%emt 0:00:00]} 39. Rd5 {[%emt 0:01:51]} Rb2 {[%emt 0:00:00]} 40. c6 {[%emt 0:01:30]} Rc2 {[%emt 0:00:00]} 41. Rd6 {[%emt 0:02:39]} d3 {[%emt 0:00:00]} 42. Rxd3 {[%emt 0:01:56]} Rxc6 {[%emt 0:00:00]} 43. Rfd1 {[%emt 0:05:07]} h6 {[%emt 0:00:00]} 44. Qg4 {[%emt 0:01:34]} Qg6 {[%emt 0:00:00]} 45. Rd8+ {[%emt 0:05:09]} Kh7 {[%emt 0:00:00]} 46. Qxg6+ {[%emt 0:01:05]} Kxg6 {[%emt 0:00:00]} 47. R8d6+ {[%emt 0:00:37]} Re6 {[%emt 0:00:00]} 48. Rxe6+ {[%emt 0:00:16]} Rxe6 {[%emt 0:00:00]} 49. Rd5 {[%emt 0:00:52]} Ra6 {[%emt 0:00:00]} 50. Rd2 {[%emt 0:00:42]} Ra4 {[%emt 0:00:00]} 51. Re2 {[%emt 0:00:14]} Kf6 {[%emt 0:00:00]} 52. Kf2 {[%emt 0:00:21]} Ra3 {[%emt 0:00:00]} 53. Kg2 {[%emt 0:03:13]} g6 {[%emt 0:00:40]} 54. h4 {[%emt 0:01:11]} h5 {[%emt 0:00:28]} 55. Rc2 {[%emt 0:02:04]} Ke6 {[%emt 0:01:29]} 56. Rc6+ {[%emt 0:00:52]} Kf7 {[%emt 0:00:12]} 57. Rc2 {[%emt 0:00:23]} Ke6 {[%emt 0:00:10]} 58. Rc6+ {[%emt 0:00:12]} Kf7 {[%emt 0:00:10]} 59. Rc2 {[%emt 0:13:18]} 1/2-1/2

[Event "36th German Seniors-ch-65 2024"]
[Site "Bad Wildungen"]
[Date "2024.08.31"]
[Round "9.17"]
[White "Hartlieb, Juergen"]
[Black "Schulz, Michael"]
[Result "1-0"]
[ECO "A05"]
[WhiteElo "2013"]
[BlackElo "2109"]
[Annotator "NA RC"]
[PlyCount "89"]
[EventDate "2024.08.22"]
[EventType "swiss"]
[EventCountry "GER"]
[SourceTitle "playchess.com"]
[Source "ChessBase"]
[SourceQuality "1"]
[TimeControl "40/5400+30:1800+30"]

1. Nf3 {[%emt 0:00:04]} Nf6 {[%emt 0:00:29]} 2. g3 {[%emt 0:00:24]} g6 {[%emt 0:00:40]} 3. Bg2 {[%emt 0:00:55]} Bg7 {[%emt 0:00:08]} 4. O-O {[%emt 0:00:19]} O-O {[%emt 0:00:04]} 5. d3 {[%emt 0:00:52]} c5 {[%emt 0:02:28]} 6. e4 {[%emt 0:00:30]} d5 {[%emt 0:02:34]} 7. e5 {[%emt 0:04:27]} Nfd7 {[%emt 0:01:12]} 8. Bf4 {[%emt 0:00:50]} Nc6 {[%emt 0:00:13]} 9. Re1 {[%emt 0:00:30]} e6 {[%emt 0:00:10]} 10. c3 {[%emt 0:01:20]} Qb6 {[%emt 0:02:14]} 11. b3 {[%emt 0:06:12]} a5 {[%emt 0:05:14]} 12. a4 {[%emt 0:02:43]} f6 {[%emt 0:06:08]} 13. exf6 {[%emt 0:11:16]} Nxf6 {[%emt 0:00:34]} 14. Ng5 {[%emt 0:01:36]} e5 {[%emt 0:13:40]} 15. Bxe5 {[%emt 0:02:44]} Nxe5 {[%emt 0:01:00]} 16. Rxe5 {[%emt 0:00:08]} h6 {[%emt 0:08:40]} 17. Nh3 {[%emt 0:14:01]} c4 {[%emt 0:02:38]} 18. Nf4 {[%emt 0:02:06]} Bg4 {[%emt 0:09:15]} 19. Qd2 {[%emt 0:08:33]} Bf5 {[%emt 0:07:05]} 20. bxc4 {[%emt 0:05:54]} dxc4 {[%emt 0:00:17]} 21. d4 {[%emt 0:04:50]} Bxb1 {[%emt 0:01:27]} 22. Rb5 {[%emt 0:00:08]} Qxb5 {[%emt 0:10:42]} 23. axb5 {[%emt 0:00:07]} Bf5 {[%emt 0:01:49]} 24. Qe2 {[%emt 0:03:59]} g5 {[%emt 0:02:57]} 25. Qxc4+ {[%emt 0:01:06]} Kh8 {[%emt 0:01:01]} 26. Ne6 {[%emt 0:04:29]} Rac8 {[%emt 0:01:26]} 27. Qb3 {[%emt 0:01:32]} Bxe6 {[%emt 0:00:40]} 28. Qxe6 {[%emt 0:00:05]} Rxc3 {[%emt 0:00:12]} 29. Bxb7 {[%emt 0:00:47]} Re8 {[%emt 0:01:43]} 30. Qf5 {[%emt 0:00:27]} Nh7 {[%emt 0:01:20]} 31. Be4 {[%emt 0:02:46]} Nf8 {[%emt 0:00:10]} 32. Rxa5 {[%emt 0:00:15]} Bxd4 {[%emt 0:00:48]} 33. Ra8 {[%emt 0:00:09]} Rxa8 {[%emt 0:00:52]} 34. Bxa8 {[%emt 0:00:05]} Kg7 {[%emt 0:00:29]} 35. Qd5 {[%emt 0:01:01]} Rd3 {[%emt 0:01:02]} 36. Qf5 {[%emt 0:01:38]} Rd2 {[%emt 0:00:54]} 37. Bc6 {[%emt 0:02:51]} Ng6 {[%emt 0:01:28]} 38. Be8 {[%emt 0:01:38]} Ne5 {[%emt 0:00:28]} 39. b6 {[%emt 0:00:51]} g4 {[%emt 0:00:11]} 40. Kg2 {[%emt 0:03:23]} Rb2 {[%emt 0:00:34]} 41. Qf4 {[%emt 0:32:13]} Rxf2+ {[%emt 0:34:24]} 42. Qxf2 {[%emt 0:00:53]} Bxf2 {[%emt 0:00:04]} 43. Kxf2 {[%emt 0:00:27]} Nd3+ {[%emt 0:00:05]} 44. Ke3 {[%emt 0:01:41]} Nc5 {[%emt 0:00:06]} 45. Kf4 {[%emt 0:00:46]} 1-0

[Event "36th German Seniors-ch-65 2024"]
[Site "Bad Wildungen"]
[Date "2024.08.31"]
[Round "9.18"]
[White "Krueger, Erich"]
[Black "Boeven, Manfred"]
[Result "1/2-1/2"]
[ECO "D02"]
[WhiteElo "2085"]
[BlackElo "1998"]
[Annotator "NA RC"]
[PlyCount "82"]
[EventDate "2024.08.22"]
[EventType "swiss"]
[EventCountry "GER"]
[SourceTitle "playchess.com"]
[Source "ChessBase"]
[SourceQuality "1"]
[TimeControl "40/5400+30:1800+30"]

1. d4 {[%emt 0:00:04]} d5 {[%emt 0:00:15]} 2. c4 {[%emt 0:00:07]} Bf5 {[%emt 0:00:12]} 3. Nf3 {[%emt 0:01:16]} e6 {[%emt 0:00:14]} 4. Nc3 {[%emt 0:00:30]} c6 {[%emt 0:00:18]} 5. Bf4 {[%emt 0:00:49]} Bd6 {[%emt 0:01:03]} 6. Bxd6 {[%emt 0:01:07]} Qxd6 {[%emt 0:00:10]} 7. e3 {[%emt 0:00:40]} Nf6 {[%emt 0:03:21]} 8. Qb3 {[%emt 0:01:57]} Nbd7 {[%emt 0:00:45]} 9. Be2 {[%emt 0:00:53]} O-O {[%emt 0:00:41]} 10. O-O {[%emt 0:00:38]} Rab8 {[%emt 0:01:38]} 11. Rfd1 {[%emt 0:04:38]} h6 {[%emt 0:01:14]} 12. Rac1 {[%emt 0:03:25]} Ne4 {[%emt 0:03:25]} 13. Nxe4 {[%emt 0:03:14]} Bxe4 {[%emt 0:00:15]} 14. Nd2 {[%emt 0:00:58]} Bg6 {[%emt 0:05:57]} 15. cxd5 {[%emt 0:10:24]} exd5 {[%emt 0:00:59]} 16. Bd3 {[%emt 0:01:12]} Bxd3 {[%emt 0:00:31]} 17. Qxd3 {[%emt 0:00:09]} Rfe8 {[%emt 0:01:02]} 18. a3 {[%emt 0:00:36]} Nf6 {[%emt 0:03:40]} 19. b4 {[%emt 0:02:01]} a6 {[%emt 0:00:32]} 20. Rb1 {[%emt 0:05:13]} Ne4 {[%emt 0:06:09]} 21. a4 {[%emt 0:03:13]} Ra8 {[%emt 0:02:52]} 22. Nxe4 {[%emt 0:02:06]} dxe4 {[%emt 0:03:48]} 23. Qc4 {[%emt 0:01:05]} Qd5 {[%emt 0:05:58]} 24. Qxd5 {[%emt 0:03:33]} cxd5 {[%emt 0:01:39]} 25. Rdc1 {[%emt 0:00:02]} Re7 {[%emt 0:07:10]} 26. Rc5 {[%emt 0:01:11]} Rd7 {[%emt 0:00:10]} 27. Rbc1 {[%emt 0:00:43]} Kf8 {[%emt 0:02:00]} 28. Rc8+ {[%emt 0:02:23]} Rxc8 {[%emt 0:00:18]} 29. Rxc8+ {[%emt 0:00:45]} Ke7 {[%emt 0:00:11]} 30. f3 {[%emt 0:06:07]} exf3 {[%emt 0:02:12]} 31. gxf3 {[%emt 0:00:15]} Kd6 {[%emt 0:00:21]} 32. Kf2 {[%emt 0:02:24]} Rc7 {[%emt 0:04:03]} 33. Rxc7 {[%emt 0:01:41]} Kxc7 {[%emt 0:00:02]} 34. Kg3 {[%emt 0:00:16]} b6 {[%emt 0:00:22]} 35. h4 {[%emt 0:00:48]} Kd6 {[%emt 0:00:47]} 36. Kf4 {[%emt 0:00:20]} Ke6 {[%emt 0:01:59]} 37. e4 {[%emt 0:00:46]} g6 {[%emt 0:01:36]} 38. Kg4 {[%emt 0:01:37]} f6 {[%emt 0:05:18]} 39. Kf4 {[%emt 0:12:59]} h5 {[%emt 0:08:46]} 40. Kg3 {[%emt 0:00:30]} Kd6 {[%emt 0:00:30]} 41. Kf4 {[%emt 0:30:50]} Ke6 {[%emt 0:34:29]} 1/2-1/2

[Event "36th German Seniors-ch-65 2024"]
[Site "Bad Wildungen"]
[Date "2024.08.31"]
[Round "9.19"]
[White "Hanisch, Friedrich"]
[Black "Dekan, Hans"]
[Result "1/2-1/2"]
[ECO "D00"]
[WhiteElo "2012"]
[BlackElo "2079"]
[Annotator "NA RC"]
[PlyCount "20"]
[EventDate "2024.08.22"]
[EventType "swiss"]
[EventCountry "GER"]
[SourceTitle "playchess.com"]
[Source "ChessBase"]
[SourceQuality "1"]
[TimeControl "40/5400+30:1800+30"]

1. d4 {[%emt 0:00:04]} d5 {[%emt 0:00:05]} 2. Bf4 {[%emt 0:00:07]} Bf5 {[%emt 0:00:24]} 3. e3 {[%emt 0:00:24]} e6 {[%emt 0:00:11]} 4. Bd3 {[%emt 0:00:06]} Bg6 {[%emt 0:01:06]} 5. Nf3 {[%emt 0:00:13]} Bd6 {[%emt 0:00:14]} 6. Bxd6 {[%emt 0:01:08]} Qxd6 {[%emt 0:00:08]} 7. c3 {[%emt 0:01:21]} Nd7 {[%emt 0:00:21]} 8. O-O {[%emt 0:00:55]} Ngf6 {[%emt 0:00:09]} 9. h3 {[%emt 0:01:14]} O-O {[%emt 0:00:12]} 10. Qc2 {[%emt 0:02:01]} e5 {[%emt 1:32:40]} 1/2-1/2

[Event "36th German Seniors-ch-65 2024"]
[Site "Bad Wildungen"]
[Date "2024.08.31"]
[Round "9.20"]
[White "Lutz, Albert"]
[Black "Gollasch, Theo-Heinz"]
[Result "0-1"]
[ECO "B25"]
[WhiteElo "2070"]
[BlackElo "2006"]
[Annotator "NA RC"]
[PlyCount "76"]
[EventDate "2024.08.22"]
[EventType "swiss"]
[EventCountry "GER"]
[SourceTitle "playchess.com"]
[Source "ChessBase"]
[SourceQuality "1"]
[TimeControl "40/5400+30:1800+30"]

1. e4 {[%emt 0:00:07]} c5 {[%emt 0:00:41]} 2. Nf3 {[%emt 0:00:04]} d6 {[%emt 0:00:08]} 3. g3 {[%emt 0:00:29]} e5 {[%emt 0:00:34]} 4. Bg2 {[%emt 0:00:13]} Nc6 {[%emt 0:00:18]} 5. O-O {[%emt 0:00:09]} g6 {[%emt 0:00:46]} 6. d3 {[%emt 0:03:35]} Bg7 {[%emt 0:00:16]} 7. Nc3 {[%emt 0:01:40]} Nge7 {[%emt 0:00:37]} 8. Nh4 {[%emt 0:01:35]} O-O {[%emt 0:00:38]} 9. f4 {[%emt 0:06:53]} exf4 {[%emt 0:01:05]} 10. gxf4 {[%emt 0:04:55]} Nd4 {[%emt 0:00:58]} 11. Nf3 {[%emt 0:01:53]} Bg4 {[%emt 0:01:52]} 12. Ne2 {[%emt 0:00:16]} Nxf3+ {[%emt 0:01:03]} 13. Bxf3 {[%emt 0:00:20]} Bxf3 {[%emt 0:00:24]} 14. Rxf3 {[%emt 0:00:11]} f5 {[%emt 0:00:16]} 15. c3 {[%emt 0:01:43]} Qb6 {[%emt 0:01:11]} 16. Kg2 {[%emt 0:01:22]} d5 {[%emt 0:00:43]} 17. e5 {[%emt 0:04:21]} Rac8 {[%emt 0:01:58]} 18. d4 {[%emt 0:01:40]} Rfd8 {[%emt 0:01:21]} 19. dxc5 {[%emt 0:02:47]} Qxc5 {[%emt 0:00:03]} 20. Be3 {[%emt 0:00:23]} Qa5 {[%emt 1:25:38]} 21. Nd4 {[%emt 0:07:10]} Qa6 {[%emt 0:00:00]} 22. h4 {[%emt 0:03:09]} h5 {[%emt 0:00:00]} 23. Rg3 {[%emt 0:01:22]} Kh7 {[%emt 0:00:00]} 24. Kh3 {[%emt 0:02:36]} Rg8 {[%emt 0:00:00]} 25. a4 {[%emt 0:06:53]} b6 {[%emt 0:00:00]} 26. Nb5 {[%emt 0:01:50]} Rcf8 {[%emt 0:00:00]} 27. Qb3 {[%emt 0:04:00]} Bxe5 {[%emt 0:00:00]} 28. fxe5 {[%emt 0:01:31]} f4 {[%emt 0:00:00]} 29. Bxf4 {[%emt 0:05:21]} Qc8+ {[%emt 0:00:00]} 30. Kg2 {[%emt 0:04:21]} Rxf4 {[%emt 0:00:00]} 31. Rf1 {[%emt 0:05:36]} Rxf1 {[%emt 0:00:00]} 32. Kxf1 {[%emt 0:00:19]} Qf5+ {[%emt 0:06:00]} 33. Ke2 {[%emt 0:07:42]} Rf8 {[%emt 0:00:00]} 34. c4 {[%emt 0:05:01]} dxc4 {[%emt 0:00:00]} 35. Qa3 {[%emt 0:06:18]} Qf1+ {[%emt 0:00:00]} 36. Kd2 {[%emt 0:00:45]} Rf2+ {[%emt 0:00:00]} 37. Kc3 {[%emt 0:00:58]} Qc1+ {[%emt 0:00:00]} 38. Kd4 {[%emt 0:00:13]} Rf4# {[%emt 0:00:00]} 0-1

[Event "36th German Seniors-ch-65 2024"]
[Site "Bad Wildungen"]
[Date "2024.08.31"]
[Round "9.21"]
[White "Simon, Ralf-Axel"]
[Black "Ruether, Rudolf"]
[Result "0-1"]
[ECO "A13"]
[WhiteElo "2003"]
[BlackElo "2065"]
[Annotator "NA RC"]
[PlyCount "123"]
[EventDate "2024.08.22"]
[EventType "swiss"]
[EventCountry "GER"]
[SourceTitle "playchess.com"]
[Source "ChessBase"]
[SourceQuality "1"]
[TimeControl "40/5400+30:1800+30"]

1. Nf3 {[%emt 0:00:04]} d5 {[%emt 0:00:19]} 2. e3 {[%emt 0:01:28]} Nf6 {[%emt 0:02:43]} 3. c4 {[%emt 0:02:50]} e6 {[%emt 0:01:27]} 4. b3 {[%emt 0:00:20]} Be7 {[%emt 0:00:15]} 5. Bb2 {[%emt 0:00:12]} O-O {[%emt 0:00:12]} 6. Nc3 {[%emt 0:00:09]} b6 {[%emt 0:07:12]} 7. cxd5 {[%emt 0:00:54]} exd5 {[%emt 0:01:05]} 8. Rc1 {[%emt 0:17:20]} Bb7 {[%emt 0:03:23]} 9. d4 {[%emt 0:05:44]} Nbd7 {[%emt 0:02:05]} 10. Bd3 {[%emt 0:01:22]} Re8 {[%emt 0:04:55]} 11. O-O {[%emt 0:00:07]} c5 {[%emt 0:02:15]} 12. Ne2 {[%emt 0:10:44]} Bd6 {[%emt 0:05:13]} 13. Ng3 {[%emt 0:00:54]} g6 {[%emt 0:01:47]} 14. Qe2 {[%emt 0:05:15]} Qe7 {[%emt 0:08:40]} 15. Ba6 {[%emt 0:18:31]} Bc6 {[%emt 0:05:16]} 16. Bb5 {[%emt 0:06:21]} Rac8 {[%emt 0:01:03]} 17. Rfd1 {[%emt 0:10:01]} h5 {[%emt 0:05:48]} 18. Ba1 {[%emt 0:04:46]} Bxb5 {[%emt 0:18:18]} 19. Qxb5 {[%emt 0:00:02]} Rc7 {[%emt 0:00:10]} 20. dxc5 {[%emt 0:02:19]} bxc5 {[%emt 0:01:19]} 21. Bxf6 {[%emt 0:00:35]} Nxf6 {[%emt 0:04:17]} 22. Qd3 {[%emt 0:03:22]} Rd8 {[%emt 0:07:42]} 23. Ne2 {[%emt 0:03:58]} Qe6 {[%emt 0:02:35]} 24. g3 {[%emt 0:03:12]} Be7 {[%emt 0:01:02]} 25. Kg2 {[%emt 0:00:47]} Ne4 {[%emt 0:04:39]} 26. Nf4 {[%emt 0:00:36]} Qb6 {[%emt 0:03:54]} 27. Nxd5 {[%emt 0:00:45]} Rxd5 {[%emt 0:00:08]} 28. Qxd5 {[%emt 0:00:08]} Nf6 {[%emt 0:00:02]} 29. Qc4 {[%emt 0:01:01]} Qb7 {[%emt 0:00:14]} 30. Qe2 {[%emt 0:00:38]} h4 {[%emt 0:00:32]} 31. Rc4 {[%emt 0:00:27]} hxg3 {[%emt 0:00:54]} 32. hxg3 {[%emt 0:00:03]} Ne4 {[%emt 0:00:19]} 33. Rh1 {[%emt 0:01:22]} Ng5 {[%emt 0:01:18]} 34. e4 {[%emt 0:00:19]} Ne6 {[%emt 0:00:16]} 35. Qe3 {[%emt 0:00:44]} Bf6 {[%emt 0:00:32]} 36. Kg1 {[%emt 0:00:34]} Rd7 {[%emt 0:00:13]} 37. Rc1 {[%emt 0:00:16]} Qa6 {[%emt 0:01:04]} 38. e5 {[%emt 0:00:34]} Bg7 {[%emt 0:00:24]} 39. a4 {[%emt 0:00:28]} Rd3 {[%emt 0:00:51]} 40. Qe2 {[%emt 0:00:25]} Ng5 {[%emt 0:02:47]} 41. Nxg5 {[%emt 0:30:23]} Rxg3+ 42. Kf1 {[%emt 0:01:30]} Qxe2+ {[%emt 0:31:02]} 43. Kxe2 {[%emt 0:00:00]} Rxg5 {[%emt 0:00:03]} 44. Rxc5 {[%emt 0:00:00]} Bxe5 {[%emt 0:00:00]} 45. Rd1 {[%emt 0:00:00]} Rf5 {[%emt 0:00:00]} 46. Rd8+ {[%emt 0:00:00]} Kg7 {[%emt 0:00:00]} 47. Ra8 {[%emt 0:02:30]} Rxf2+ {[%emt 0:00:00]} 48. Ke3 {[%emt 0:00:00]} Rf5 {[%emt 0:00:00]} 49. Ke4 {[%emt 0:00:00]} f6 {[%emt 0:00:00]} 50. Rxa7+ {[%emt 0:00:00]} Kh6 {[%emt 0:00:00]} 51. Rb7 {[%emt 0:00:00]} Rf4+ {[%emt 0:00:00]} 52. Ke3 {[%emt 0:00:00]} Rf1 {[%emt 0:00:00]} 53. a5 {[%emt 0:01:08]} Ra1 {[%emt 0:00:00]} 54. b4 {[%emt 0:00:27]} g5 {[%emt 0:00:00]} 55. Ke4 {[%emt 0:01:05]} g4 {[%emt 0:00:00]} 56. Rc2 {[%emt 0:00:48]} g3 {[%emt 0:00:00]} 57. Rb6 {[%emt 0:00:50]} Kg5 {[%emt 0:00:00]} 58. a6 {[%emt 0:00:19]} Kg4 {[%emt 0:00:00]} 59. b5 {[%emt 0:00:40]} Ra4+ {[%emt 0:00:00]} 60. Kd5 {[%emt 0:01:13]} Bd4 {[%emt 0:02:25]} 61. Rb7 {[%emt 0:00:00]} Bf2 {[%emt 0:00:54]} 62. Rh7 {[%emt 0:00:26]} 0-1

[Event "36th German Seniors-ch-65 2024"]
[Site "Bad Wildungen"]
[Date "2024.08.31"]
[Round "9.22"]
[White "Eichner, Christian"]
[Black "Schmidt, Gerhard"]
[Result "1/2-1/2"]
[ECO "B51"]
[WhiteElo "1972"]
[BlackElo "2088"]
[Annotator "NA RC"]
[PlyCount "39"]
[EventDate "2024.08.22"]
[EventType "swiss"]
[EventCountry "GER"]
[SourceTitle "playchess.com"]
[Source "ChessBase"]
[SourceQuality "1"]
[TimeControl "40/5400+30:1800+30"]

1. e4 {[%emt 0:00:03]} c5 {[%emt 0:00:09]} 2. Nf3 {[%emt 0:00:06]} d6 {[%emt 0:00:12]} 3. Bb5+ {[%emt 0:00:06]} Nd7 {[%emt 0:00:16]} 4. a4 {[%emt 0:00:07]} Ngf6 {[%emt 0:00:30]} 5. Nc3 {[%emt 0:00:26]} a6 {[%emt 0:00:28]} 6. Bc4 {[%emt 0:00:20]} e6 {[%emt 0:00:43]} 7. O-O {[%emt 0:00:23]} Qa5 {[%emt 0:01:15]} 8. Re1 {[%emt 0:05:36]} b5 {[%emt 0:01:51]} 9. Bf1 {[%emt 0:03:05]} b4 {[%emt 0:08:53]} 10. Nb1 {[%emt 0:03:29]} Bb7 {[%emt 0:04:53]} 11. d3 {[%emt 0:02:23]} Be7 12. Nbd2 {[%emt 1:20:26]} O-O {[%emt 1:17:20]} 13. e5 {[%emt 0:00:30]} dxe5 {[%emt 0:00:30]} 14. Nxe5 {[%emt 0:00:30]} Nxe5 {[%emt 0:00:00]} 15. Rxe5 {[%emt 0:00:00]} Qc7 {[%emt 0:00:00]} 16. Nc4 {[%emt 0:00:00]} Bd5 {[%emt 0:00:00]} 17. Bf4 {[%emt 0:00:00]} Bxc4 {[%emt 0:00:00]} 18. Re4 {[%emt 0:00:00]} Bd6 {[%emt 0:00:00]} 19. Bxd6 {[%emt 0:00:00]} Qxd6 {[%emt 0:00:00]} 20. Rxc4 {[%emt 0:00:00]} 1/2-1/2